Cogmind - Beta 13 @@@ ROGUE MODE // 2024.04.03 @ 18:48:56 Player: Kinga Result: Self-destructed Performance ------------- Evolutions (1) 500 Regions Visited (3) 600 Robots Destroyed (37) 185 Value Destroyed (638) 638 Prototype IDs (2) 40 Alien Tech Used (0) 0 Bonus (19) 19 TOTAL SCORE: 1982 Bonus ------- High Alert Combat Kills 19 Cogmind --------- Core Integrity 327/400 Matter 5/300 Energy 99/100 System Corruption 0% Temperature Cool (2) Movement Flying (37) Location -9/Materials Parts ------- > --- POWER (1) -------- (None) > --- PROPULSION (4) --- Flight Unit Flight Unit > --- UTILITY (2) ------ Visual Processing Unit Hardened Light Armor Plating > --- WEAPON (2) ------- Grenade Launcher > --- INVENTORY (5) ---- Light Ion Engine Light Cannon Peak State ------------ > --- POWER ------------ Heavy Ion Engine > --- PROPULSION ------- Flight Unit Flight Unit Flight Unit Flight Unit > --- UTILITY ---------- Targeting Computer Hardened Light Armor Plating > --- WEAPON ----------- Improved Medium Laser Grenade Launcher > --- INVENTORY -------- Light Ion Engine Light Ion Engine Compact Wheel Grenade Launcher [Rating: 14] Favorites ----------- Power Light Ion Engine Engine Light Ion Engine Propulsion Light Treads Treads Light Treads Wheel Compact Wheel Hover Unit Hover Unit Flight Unit Flight Unit Utility Targeting Computer Device High-powered Tractor Beam Storage Small Storage Unit Processor Targeting Computer Protection Hardened Light Armor Plating Weapon Assault Rifle Energy Gun EM Pulse Gun Ballistic Gun Assault Rifle Ballistic Cannon Light Cannon Launcher Grenade Launcher Build | -11 -10 -10 -9 ------- Run | Yrd Mat Min Mat Slots Evolved 2 | . . . 2 Power . | . . . . Propulsion 2 | . . . 2 Utility . | . . . . Weapon . | . . . . Parts Attached 31 | 6 1 1 23 Power 3 | 1 . . 2 Engine 3 | 1 . . 2 Core . | . . . . Reactor . | . . . . Propulsion 13 | 2 . . 11 Treads 2 | 2 . . . Leg . | . . . . Wheel 1 | . . . 1 Hover 2 | . . . 2 Flight 8 | . . . 8 Utility 6 | 1 1 . 4 Device 1 | . . . 1 Storage 1 | 1 . . . Processor 2 | . 1 . 1 Hackware . | . . . . Protection 2 | . . . 2 Artifact . | . . . . Weapon 9 | 2 . 1 6 Energy Gun 3 | 1 . 1 1 Energy Cannon . | . . . . Ballistic Gun 1 | 1 . . . Ballistic Cannon 1 | . . . 1 Launcher 4 | . . . 4 Special Weapon . | . . . . Impact Weapon . | . . . . Slashing Weapon . | . . . . Piercing Weapon . | . . . . Special Melee Weapon . | . . . . Unidentified Prototypes 2 | . . . 2 Parts Lost 12 | . . 1 11 Power 1 | . . . 1 Propulsion 7 | . . . 7 Utility 1 | . . . 1 Weapon 3 | . . 1 2 Highest Loss Streak 7 | . . 1 7 To Critical Strikes . | . . . . Average Slot Usage (%) 93 | . 98 99 72 Engine 13 | . 14 14 9 Treads 21 | . 28 28 . Hover 1 | . . . 4 Flight 5 | . . . 21 Storage 10 | . 14 14 . Processor 12 | . 12 14 9 Protection 1 | . . . 7 Energy Gun 11 | . 14 13 5 Ballistic Gun 11 | . 14 14 1 Launcher 1 | . . . 6 Naked Turns . | . . . . Heaviest Build 14 | 12 12 12 14 Greatest Support 40 | 40 40 40 16 Greatest Overweight (x) 3 | . . . 3 Average Overweight (x) . | . . . . Largest Inventory Capacity 8 | 8 8 8 8 Average Capacity 7 | 7 8 8 5 Most Carried 8 | 4 8 8 7 Average Carried 6 | 2 6 7 2 Final Capacity 8 | 8 8 8 5 Final Carried 8 | 4 8 8 2 Class Distribution -------------------- 90% | Mutant 5% | Scavenger-Mutant 3% | Scavenger-Sprinter Dominant Class ---------------- Mutant | -10/Materials Mutant | -10/Mines Mutant | -9/Materials Resources | -11 -10 -10 -9 ----------- Run | Yrd Mat Min Mat Matter Collected 495 | 154 181 66 94 Remotely 30 | . . . 30 Salvage Created 841 | . 322 140 379 Parts 79 | . 29 7 43 Haulers Intercepted 3 | . 1 . 2 Recyclers Shooed . | . . . . Parts Field Recycled . | . . . . Retrieved Matter . | . . . . Parts Self-Destructed . | . . . . Prevented . | . . . . Kills | -11 -10 -10 -9 ------- Run | Yrd Mat Min Mat Combat Hostiles Destroyed 25 | . 7 5 13 Guns 12 | . 7 5 . Cannons 1 | . . . 1 AOE 12 | . . . 12 Classes Destroyed 8 | . 6 . 2 Builder 3 | . 1 . 2 Tunneler 1 | . . . 1 Hauler 3 | . 1 . 2 Recycler 2 | . 1 . 1 Watcher 3 | . 1 . 2 Swarmer 17 | . 6 3 8 Grunt 6 | . 1 2 3 Sentry 2 | . . . 2 Best Kill Streak 13 | . 4 3 13 Combat Bots Only 8 | . 3 3 8 Max Kills in Single Turn 3 | . 2 1 3 Gunslinging 1 | . 1 . . Exploded 3 | . . . 3 Melee . | . . . . Uniques/NPCs Destroyed . | . . . . Combat | -11 -10 -10 -9 -------- Run | Yrd Mat Min Mat Hostile Shots Fired 122 | . 34 36 52 Missed 43 | . 14 8 21 Damage Taken 1016 | . 173 315 528 Core 157 | . 17 67 73 Absorbed by Shields . | . . . . Core Remaining (%) 83 | 100 . 66 . Volleys Fired 69 | . 26 16 27 Largest 2 | . 2 2 2 Hottest 65 | . 60 60 65 Shots Fired 106 | . 52 24 30 Gun 83 | . 52 24 7 Cannon 3 | . . . 3 Launcher 20 | . . . 20 Special . | . . . . Kinetic 47 | . 26 16 5 Thermal 3 | . . . 3 Explosive 20 | . . . 20 Electromagnetic 36 | . 26 8 2 Robot Hit Streak 12 | . 12 5 9 Robot Miss Streak 3 | . 2 3 2 Penetration Max . | . . . . Secondary Targets 2 | . 2 . . Max Gunslinging Chain 1 | . 1 . . Shots Hit Robots 72 | . 38 14 20 Core Hits 57 | . 15 8 34 Critical Kills . | . . . . Critical Parts Destroyed 1 | . 1 . . Critical Strikes 1 | . 1 . . Destroy 1 | . 1 . . Melee Attacks . | . . . . Impact . | . . . . Slashing . | . . . . Piercing . | . . . . Sneak Attacks . | . . . . Combat Hostiles . | . . . . Follow-up Attacks . | . . . . Damage Inflicted 1988 | . 537 188 1263 Guns 774 | . 506 188 80 Cannons 18 | . . . 18 Explosions 1183 | . 31 . 1152 Melee . | . . . . Ramming 13 | . . . 13 Kinetic 387 | . 259 110 18 Thermal 67 | . 31 . 36 Explosive 1152 | . . . 1152 Electromagnetic 369 | . 247 78 44 Impact . | . . . . Slashing . | . . . . Piercing . | . . . . Highest Corruption . | . . . . Average Corruption . | . . . . Corruption Purged . | . . . . Corruption Blocked . | . . . . Overload Shots . | . . . . Overflow Damage 85 | . . . 85 Projectiles . | . . . . Explosions 85 | . . . 85 Melee . | . . . . Knockbacks . | . . . . Impact . | . . . . Kinetic . | . . . . Secondary . | . . . . Self-Inflicted Damage 171 | . . . 171 Shots 8 | . . . 8 Rammed 1 | . . . 1 Targets Rammed 1 | . . . 1 Kicked . | . . . . Crushed . | . . . . Highest Temperature 82 | . 30 81 82 Average Temperature 26 | . 23 47 19 Received Heat Transfer 210 | . 30 111 69 Siege Activations . | . . . . Robots Corrupted . | . . . . Combat Hostiles . | . . . . Parts Fried . | . . . . Impact Corruptions . | . . . . Robots Melted . | . . . . Combat Hostiles . | . . . . Parts Melted 1 | . 1 . . Heat Transferred 124 | . 50 . 74 Parts Sabotaged . | . . . . Parts Stolen . | . . . . Parts Stripped . | . . . . Power Chain Reactions 1 | . 1 . . Alert | -11 -10 -10 -9 ------- Run | Yrd Mat Min Mat Peak Influence 540 | . 216 159 540 Initial 84 | . . 84 25 Average 129 | . 103 111 240 Maximum Alert Level 2 | . 1 . 2 Low Security (%) 84 | 100 74 100 48 Level 1 8 | . 25 . 15 Level 2 7 | . . . 35 Level 3 . | . . . . Level 4 . | . . . . Level 5 . | . . . . High Security . | . . . . Max Security . | . . . . Squads Dispatched 2 | . . . 2 Investigation 1 | . . . 1 Extermination . | . . . . Reinforcement 1 | . . . 1 Assault . | . . . . Garrison . | . . . . Intercept . | . . . . Searches Triggered . | . . . . Construction Impeded 1 | . . . 1 Haulers Reinforced . | . . . . Active Scanning Responses . | . . . . Cargo Convoy Interrupts . | . . . . Stealth | -11 -10 -10 -9 --------- Run | Yrd Mat Min Mat Distress Signals 5 | . 1 . 4 Communications Jammed . | . . . . Distress Signals . | . . . . Times Spotted 40 | . 9 5 26 Peak Tracking Total 8 | . 4 3 8 Tactical Retreats 3 | . 1 . 2 Traps | -11 -10 -10 -9 ------- Run | Yrd Mat Min Mat Traps Triggered . | . . . . Indirectly . | . . . . Trap Hack Attempts . | . . . . Triggered . | . . . . Disarmed . | . . . . Reprogrammed . | . . . . Reused . | . . . . Traps Extracted . | . . . . Installed . | . . . . Triggered . | . . . . Machines | -11 -10 -10 -9 ---------- Run | Yrd Mat Min Mat Machines Disabled 6 | . 1 2 3 Max in Single Turn 2 | . 1 1 2 Machines Repaired . | . . . . Machines Dismantled . | . . . . Machines Sabotaged . | . . . . Overloaded Fab Kills . | . . . . Hacking | -11 -10 -10 -9 --------- Run | Yrd Mat Min Mat Machines Accessed 5 | . . . 5 Terminals 4 | . . . 4 Fabricators . | . . . . Repair Stations . | . . . . Recycling Units 1 | . . . 1 Scanalyzers . | . . . . Garrison Access . | . . . . Total Hacks 8 | . . . 8 Successful 5 | . . . 5 Failed 3 | . . . 3 Catastrophic 1 | . . . 1 Database Lockouts . | . . . . Manual 7 | . . . 7 Terminals 7 | . . . 7 Fabricators . | . . . . Repair Stations . | . . . . Recycling Units 1 | . . . 1 Scanalyzers . | . . . . Garrison Access . | . . . . Terminal Hacks 1 | . . . 1 Hauler Manifests 1 | . . . 1 Fabricator Hacks . | . . . . Repair Station Hacks . | . . . . Recycling Unit Hacks 1 | . . . 1 Retrieve Components 1 | . . . 1 Scanalyzer . | . . . . Garrison Access Hacks . | . . . . Unauthorized Hacks 3 | . . . 3 Terminals 3 | . . . 3 Assimilate 1 | . . . 1 Botnet 2 | . . . 2 Fabricators . | . . . . Repair Stations . | . . . . Recycling Units . | . . . . Scanalyzers . | . . . . Garrison Access . | . . . . Data Cores Recovered . | . . . . Used . | . . . . Hacking Detections 2 | . . . 2 Full Trace Events 1 | . . . 1 Feedback Events . | . . . . Feedback Blocked . | . . . . Robot Schematics Acquired . | . . . . Robots Built . | . . . . Authchips . | . . . . Time . | . . . . Total Robot Build Rating . | . . . . Part Schematics Acquired . | . . . . Parts Built . | . . . . Authchips . | . . . . Time . | . . . . Total Part Build Rating . | . . . . Parts Repaired . | . . . . Time . | . . . . Parts Recycled . | . . . . Recycled Matter . | . . . . Retrieved Matter . | . . . . Retrieved Components 2 | . . . 2 Parts Scanalyzed . | . . . . Part Schematics Acquired . | . . . . Parts Damaged . | . . . . Bothacking | -11 -10 -10 -9 ------------ Run | Yrd Mat Min Mat Used RIF Installer . | . . . . Robots Hacked . | . . . . Non-combat . | . . . . Combat . | . . . . Robot Hacks Applied . | . . . . Relay Couplers Released . | . . . . Fabnet Peak Effective % . | . . . . Robots Rewired . | . . . . Allies Hacked . | . . . . Hacks Repelled . | . . . . Allies | -11 -10 -10 -9 -------- Run | Yrd Mat Min Mat Total Allies . | . . . . Largest Group . | . . . . Highest-Rated Group . | . . . . Highest-Rated Ally . | . . . . Total Orders . | . . . . Ally Attacks . | . . . . Total Damage . | . . . . Kills . | . . . . Allies Corrupted . | . . . . Allies Melted . | . . . . Intel | -11 -10 -10 -9 ------- Run | Yrd Mat Min Mat Robot Analysis Total . | . . . . Derelict Logs Recovered . | . . . . Drone Launches . | . . . . Drone Recoveries . | . . . . Exploration | -11 -10 -10 -9 ------------- Run | Yrd Mat Min Mat Turns Passed 1284 | 109 228 662 285 Spaces Moved 954 | 62 88 388 416 Core 4 | 2 . . 2 Treads 536 | 60 88 388 . Legs . | . . . . Wheels 17 | . . . 17 Hover 63 | . . . 63 Flight 334 | . . . 334 Fastest Speed 31 | 50 160 160 31 Average Speed 108 | 156 160 160 43 Slowest Speed 200 | 160 160 160 200 Overloaded Moves . | . . . . Propulsion Burnouts . | . . . . Robots Hopped 1 | . . . 1 Cave-ins Triggered . | . . . . Exploration Rate (%) 38 | 7 21 83 41 Regions Visited 3 Branch Regions 1 Pre-discovered Areas . | . . . . Known Exits Taken . | . . . . Unknown Exits Taken 3 | 1 1 1 . Scrap Searched 1 | . . 1 . Spaces Dug 7 | . . . 7 Terrain Destroyed 79 | . 2 . 77 Melee . | . . . . Projectile . | . . . . AOE 79 | . 2 . 77 Terrain Rammed . | . . . . Walls Destroyed . | . . . . Machines Disabled . | . . . . Actions | -11 -10 -10 -9 --------- Run | Yrd Mat Min Mat Total 1092 | 71 126 405 490 Wait 10 | . . . 10 Move 949 | 61 87 387 414 Hop 1 | . . . 1 Pick Up 14 | 4 8 1 1 Fast Attach 18 | 6 1 . 11 Attach 12 | . . 1 11 Detach 4 | . . . 4 Swap 1 | . . . 1 Drop 13 | . 4 . 9 Fire 69 | . 26 16 27 Melee . | . . . . Ram 1 | . . . 1 Kick . | . . . . Crush . | . . . . Escape Stasis . | . . . . Rewire . | . . . . Trap . | . . . . Miscellaneous . | . . . . Route ------- -11/Scrapyard -10/Materials -10/Mines -9/Materials History --------- Turn | Location | Event 18 | -11/Scrapyard | Discovered new exit (range 16) 110 | -11/Scrapyard | Entered Materials 203 | -10/Materials | Discovered new exit (range 14) 325 | -10/Materials | Build established: Mutant 338 | -10/Materials | Entered Mines 988 | -10/Mines | Discovered new exit (range 8) 1000 | -10/Mines | Entered Materials 1000 | -9/Materials | Evolved 2 slots: Propulsion x2 1175 | -9/Materials | Lost 7 parts (4n1u2w) 1190 | -9/Materials | Destroyed 8 combat bots 1285 | -9/Materials | Self-destructed Last Messages --------------- C-30 ARC bursts open, deploying its payload. S-10 Pest unfolds itself. Destroyed Flight Unit. Com. Wheel destroyed. Destroyed Com. Wheel. S-10 Pest destroyed. K-01 Serf collects debris. S-10 Pest destroyed. Dropped Hover Unit. Acquired Flight Unit. R-06 Scavenger collects Lgt. Ion Engine. Acquired Flight Unit. R-06 Scavenger collects Lgt. Ion Engine. R-06 Scavenger collects Lgt. Assault Rifle. R-06 Scavenger collects Hover Unit. Flight Unit destroyed. T-07 Excavator destroyed. Lgt. Ion Engine destroyed. G-47 Trooper destroyed. Flight Unit destroyed. Map ----- +----------------------------------------------------+ | ?????????# # #???????????# | | ?????????# "" #???????????# | | ?????????# T % #???????????# | | ???# #???????????# | | ???# ##### ! #???????????# | | ?????????#####?# """ ######??????# | | ???????????????? """ ######## | | ????????????????# """ % | | ????????????????+ %%%* | | ????????????????# % = | | ????????????????### ##### ####### | | ??????????????????# #??# #????# | | ??????????????????# #??#"S #????# | | ???#??????????????# #??#""" #????# | | ???# ############## #### "" #????# | | ???# + #????# | | ???# # """ #????# | | ???# """ # """ #????## | | ???# """ g + """ #?????? | | ???# """ ######### #?????? | | ???# [[ #???????################ | | ???# [[ ########??????????# | | ???# """ [ # #??????????# """ | | ???# """ # """#??????????# """ | | ???# """ # """#??????????# """ | | ???# @/ """#??????????# | | ???# #s #??????????# """ | | ???# # #??????????# """ | | ???# #/######??????????# """ | | ???# !! s #???????????????# | | ???# !! = s #???????????????# """ | | ???# !! #???????????????# """ | | ???# ## ##?????????# """ | | ???# +????# | | ???##########+##### ##?????????###### | | ???# #?? ##???????????????? | | ???# #???#????????????????? | | ???# """ """ """ #????????????????????? | | ???# """ """ """ #????????????????????? | | ???# """ """ """ #????????????????????? | | ???# #????????????????????? | | ???########/######????????????????????? | | ?????????? ?????????????????????????? | | ?????????? ?????????????????????##### | | ????????? ""????????????????????# | | ????????? "T????????????????????#""" | | ????????# ???????????????????#""" | | ????????# ???????????????????#""" | | ????????# ??????????????????# | | ????????# ! """ ??????????????????# | +----------------------------------------------------+ Best States ------------- Heat Dissipation 28 Energy Generation 10 Energy Capacity 125 Matter Stores 300 Matter Capacity 300 Sight Range 18 Terrain Scan Density 10 Armor Coverage 150 Evasion (%) 63 Targeting Accuracy 5 Recoil Reduction 2 Item Schematics ----------------- None Robot Schematics ------------------ None Fabricated ------------ Nothing Alien Tech Used ----------------- None Achievements -------------- True Hacker Challenges ------------ None Game ------ Seed NovaHardenedTerrabomb Manual? 0 Play Time 00:14:45 Cumulative 7.1 hours Start 2024.04.03 @ 18:35:28 End 2024.04.03 @ 18:48:56 Sessions 1 Manual Loads 0 Difficulty Rogue Special Mode None Game No. 13 Rogue 13 Adventurer 0 Explorer 0 Win Type - Total 0 Types 0/0/0/0/0/0/0/0/0 Lore% 9 Gallery% 15 Achievement% 16 Wizard Run 0 Options --------- Layout 1 ASCII 0 Keyboard 0 Movement Numpad Keybinds 0 Fullscreen 1 Font 24/Smallcaps Map View 50x35 Zoom Use 0% Tactical HUD 0 Map Filters NONE Filters NONE Steam 1 RUN: bbb00d83-90cf-40c6-8da6-d463dad2667c